bitfinex/quotes_ETHUSD_20250406
["timestamp","ask_amount","ask_price","bid_price","bid_amount"]
[1743938533431,5.228,1785.2,1784.6,0.54460992]
[1743938533432,0.7861,1784.8,1784.6,0.54460992]
[1743938533634,0.05599536,1784.7,1784.6,0.54460992]
[1743938535132,0.05599536,1784.7,1784.4,6.16]
[1743938535331,0.05599536,1784.7,1784.6,0.54460992]
[1743938535498,0.05599536,1784.7,1784.5,0.54515516]
[1743938538734,0.05599536,1784.7,1784.6,0.8069]
[1743938539027,0.05599536,1784.9,1784.6,0.54460992]
[1743938539232,0.05599536,1784.9,1784.5,0.8069]
[1743938539437,0.05599536,1784.9,1784.6,0.54460992]
[1743938539636,0.6620049,1784.9,1784.6,0.54460992]
[1743938542643,0.7861,1784.8,1784.6,0.54460992]
[1743938542842,0.05599536,1784.7,1784.4,6.16]
[1743938543043,0.05599536,1784.7,1784.5,0.54515516]
[1743938544939,0.7861,1784.6,1784.5,0.54515516]
[1743938545345,6.0131,1784.6,1784.1,0.8069]
[1743938545648,0.05599536,1784.5,1784.1,0.8069]
[1743938547138,0.05599536,1784.5,1784.2,0.5466735]
[1743938549949,0.05599536,1784.5,1784.3,0.788]
[1743938550166,0.81499536,1784.8,1784.3,0.788]
[1743938550358,0.81499536,1784.8,1784.4,0.54558272]
[1743938551320,0.81499536,1784.8,1784.2,0.788]
[1743938551545,1.4190949,1784.8,1784.3,0.54612808]
[1743938551919,6.04299536,1784.8,1784.4,0.7791]
[1743938552120,0.8072,1785.0,1784.6,0.7791]
[1743938552331,0.05599536,1784.9,1784.7,0.54394702]
[1743938552922,0.05599536,1784.9,1784.5,6.16]
[1743938553124,0.05599536,1784.9,1784.6,0.54402131]
[1743938555066,0.8072,1785.0,1784.6,0.54402131]
[1743938555067,0.8072,1785.3,1784.6,8.15352344]
[1743938555273,0.05599536,1785.2,1784.6,8.15352344]
[1743938555678,0.8072,1785.1,1784.6,8.15352344]
[1743938555857,0.8072,1784.9,1784.6,6.70402131]
[1743938556068,0.05599536,1784.8,1784.6,6.70402131]
[1743938556379,0.86319536,1784.9,1784.6,6.70402131]
[1743938556578,0.05599536,1784.9,1784.6,6.70402131]
[1743938556972,0.05599536,1784.9,1784.6,7.38002659]
[1743938557177,0.8316,1785.1,1784.7,0.7753]
[1743938557371,0.05599536,1785.0,1784.7,0.7753]
[1743938557577,0.05599536,1785.0,1784.8,0.54263683]
[1743938558794,0.8316,1785.1,1784.8,0.54263683]
[1743938559366,0.88759536,1785.2,1784.8,0.54263683]
[1743938560090,0.05599536,1785.2,1784.8,6.70263683]
[1743938560293,0.05599536,1785.2,1784.8,7.43030367]
[1743938561791,0.05599536,1785.3,1784.8,7.43030367]
[1743938562195,0.05599536,1785.3,1784.9,0.7753]
[1743938562366,0.05599536,1785.3,1784.9,0.83131953]
[1743938562685,0.05599536,1785.3,1785.0,0.54137035]
[1743938563682,0.05599536,1785.4,1785.0,0.54137035]
[1743938564299,0.05599536,1785.4,1785.1,0.7753]
[1743938564473,0.05599536,1785.4,1785.2,0.53957472]
[1743938564660,0.05599536,1785.5,1785.2,0.53957472]
[1743938576304,0.88759536,1785.6,1785.2,0.53957472]
[1743938576906,0.05599536,1785.6,1785.2,0.53957472]
[1743938577307,0.05599536,1785.6,1785.3,0.7771]
[1743938577609,0.05599536,1785.6,1785.4,0.53689736]
[1743938578977,0.05599536,1785.7,1785.4,0.53689736]
[1743938579883,0.05599536,1785.8,1785.4,0.53689736]
[1743938580094,0.10599536,1785.9,1785.5,0.7771]
[1743938580402,0.10599536,1785.9,1785.6,0.53363322]
[1743938581007,0.05,1785.9,1785.6,0.53363322]
[1743938581416,0.05,1785.9,1785.7,0.7771]
[1743938582915,0.05,1785.9,1785.8,0.53419044]
[1743938586924,0.05,1785.9,1785.6,6.9674]
[1743938587105,0.05,1785.9,1785.7,0.53889857]
[1743938597334,0.05,1785.9,1785.8,0.7774]
[1743938597525,0.05,1785.9,1785.8,1.31394084]
[1743938603355,0.05,1785.9,1785.8,1.36992886]
[1743938603559,0.05,1785.9,1785.8,7.52992886]
[1743938603860,0.05,1785.9,1785.8,10.47394084]
[1743938640019,0.05,1785.9,1785.8,9.69654084]
[1743938640197,0.814,1785.9,1785.8,6.69654084]
[1743938645621,0.05,1785.9,1785.8,0.53654084]
[1743938650137,0.8153,1785.9,1785.8,0.53654084]
[1743938659208,0.05,1785.9,1785.8,0.53654084]
[1743938662128,0.8308,1785.9,1785.8,0.53654084]
[1743938664136,0.8308,1785.9,1785.4,6.16]
[1743938664341,0.7808,1785.7,1785.4,6.16]
[1743938667057,0.7808,1785.7,1785.5,0.49280976]
[1743938669755,0.84629536,1785.6,1785.5,0.49280976]
[1743938670147,1.4521249,1785.6,1785.5,0.49280976]
[1743938670344,0.7903,1785.5,1784.9,4.09678691]
[1743938670548,0.7903,1785.5,1785.1,3.0]
[1743938671164,0.7903,1785.3,1785.1,3.0]
[1743938671372,0.7903,1785.3,1785.0,6.16]
[1743938671566,0.7903,1785.3,1785.0,6.85779]
[1743938672756,0.7986,1785.5,1785.1,0.7659]
[1743938672951,0.7986,1785.5,1785.1,0.82191311]
[1743938673264,0.05599536,1785.6,1785.1,0.82191311]
[1743938674161,0.05599536,1785.6,1785.1,3.82191311]
[1743938674367,0.7986,1785.7,1785.2,0.38219131]
[1743938674563,0.85459536,1785.7,1785.2,0.38219131]
[1743938675066,0.85459536,1785.7,1785.2,6.54219131]
[1743938675472,0.7986,1785.7,1785.2,6.54219131]
[1743938678942,0.05599536,1785.6,1785.2,6.54219131]
[1743938679176,0.05599536,1785.6,1785.3,0.65421913]
[1743938680073,0.7986,1785.7,1785.3,0.65421913]
[1743938680281,0.7986,1785.7,1785.2,6.16]
[1743938682090,0.7986,1785.7,1785.3,0.49601617]
[1743938682960,0.05599536,1785.6,1785.3,0.49601617]
[1743938684388,0.05599536,1785.8,1785.3,0.49601617]
[1743938684609,0.05599536,1785.8,1785.4,0.7629]
[1743938684765,0.6689349,1785.8,1785.4,0.7629]
[1743938684966,0.6689349,1785.8,1785.5,0.49492681]
[1743938691004,0.05599536,1785.8,1785.5,0.49492681]
[1743938693691,0.05599536,1785.8,1785.5,6.65492681]
[1743938694028,0.05,1785.9,1785.6,0.7648]
[1743938694370,0.05,1785.9,1785.7,0.4938377]
[1743938695708,0.8794,1785.9,1785.7,0.4938377]
[1743938695896,0.05599536,1785.8,1785.7,0.4938377]
[1743938696097,0.05599536,1785.8,1785.5,6.16]
[1743938696311,0.05599536,1785.8,1785.6,0.49438223]
[1743938698819,0.05599536,1785.8,1785.4,0.7648]
[1743938699324,0.05599536,1785.8,1785.5,0.49504444]
[1743938700121,0.05599536,1785.8,1785.6,0.7648]
[1743938700283,0.05,1785.9,1785.6,0.7648]
[1743938700474,0.05,1785.9,1785.7,0.49442579]
[1743938707403,0.05,1785.9,1785.8,0.778]
[1743938707631,0.05,1785.9,1785.8,1.2709404]
[1743938708341,0.05,1785.9,1785.8,2.01403444]
[1743938708631,0.05,1785.9,1785.8,2.07002343]
[1743938708838,0.05,1785.9,1785.8,1.23603444]
[1743938709040,0.05,1785.9,1785.8,2.01403444]
[1743938709912,0.05,1785.9,1785.8,8.17403444]
[1743938711348,0.05,1785.9,1785.8,11.23001592]
[1743938711549,6.05619536,1786.7,1785.9,3.0]
[1743938711855,6.05619536,1786.7,1786.2,0.778]
[1743938712039,0.8328,1786.6,1786.3,0.48751572]
[1743938712354,0.05599536,1786.5,1786.1,3.0]
[1743938712512,0.05599536,1786.5,1786.4,0.48697179]
[1743938712704,0.05599536,1786.5,1786.1,3.0]
[1743938712908,0.05599536,1786.5,1786.2,0.48805971]
[1743938714613,0.88879536,1786.6,1786.2,0.48805971]
[1743938714814,0.88879536,1786.6,1786.2,1.28365971]
[1743938715838,5.26699536,1786.7,1786.2,1.33963698]
[1743938718250,0.05599536,1786.7,1786.2,1.33963698]
[1743938718417,0.05599536,1786.7,1786.3,0.7956]
[1743938718618,0.05599536,1786.7,1786.4,0.48697179]
[1743938718817,0.88879536,1786.8,1786.4,0.48697179]
[1743938720455,0.05,1786.9,1786.5,0.85157099]
[1743938720630,0.10599536,1786.9,1786.5,0.7956]
[1743938721332,0.10599536,1786.9,1786.5,1.49116]
[1743938722326,0.10599536,1786.9,1786.6,0.48588412]
[1743938722522,0.10599536,1786.9,1786.5,1.49116]
[1743938722724,0.10599536,1786.9,1786.7,0.48534037]
[1743938722919,0.10599536,1786.9,1786.5,1.49116]
[1743938724558,0.10599536,1786.9,1786.4,6.9556]
[1743938724766,0.8328,1786.8,1786.4,6.9556]
[1743938725130,0.10599536,1786.9,1786.4,6.9556]
[1743938725131,0.8328,1786.6,1786.5,0.48642792]
[1743938725532,0.88879536,1786.6,1786.5,0.48642792]
[1743938725732,0.6657749,1786.6,1786.5,0.48642792]
[1743938725933,0.8328,1786.5,1785.8,0.7956]
[1743938726134,0.88879536,1786.4,1785.8,0.7956]
[1743938726335,0.88879536,1786.4,1785.9,0.44952787]
[1743938726735,0.8328,1786.2,1785.6,6.9556]
[1743938726947,0.05599536,1786.1,1786.0,0.4489837]
[1743938727146,0.05599536,1786.1,1785.7,3.69556]
[1743938727368,0.05599536,1786.1,1786.0,0.4489837]
[1743938727571,0.05599536,1786.1,1785.7,3.69556]
[1743938727740,0.88879536,1786.2,1786.0,0.4489837]
[1743938727941,0.88879536,1786.2,1785.8,0.369556]
[1743938728140,0.88879536,1786.2,1786.1,0.44843959]
[1743938729169,0.88879536,1786.2,1785.8,0.369556]
[1743938729369,0.88879536,1786.2,1786.1,0.44843959]
[1743938729574,0.88879536,1786.2,1785.8,0.369556]
[1743938730166,0.88879536,1786.2,1785.9,0.44952787]
[1743938730573,0.88879536,1786.2,1785.8,0.369556]
[1743938730771,0.88879536,1786.2,1786.0,0.4489837]
[1743938730970,0.88879536,1786.2,1785.9,0.44952787]
[1743938731149,0.88879536,1786.2,1786.1,0.44843959]
[1743938731352,0.751,1786.5,1786.0,0.4489837]
[1743938731673,0.05599536,1786.4,1786.1,0.44843959]
[1743938731867,0.6576949,1786.4,1785.9,6.9334]
[1743938732065,0.05599536,1786.4,1786.0,0.4489837]
[1743938733141,0.05599536,1786.4,1786.0,0.50496894]
[1743938734474,0.05599536,1786.4,1786.0,0.4489837]
[1743938734670,0.8185,1786.3,1786.0,0.4489837]
[1743938734876,0.05599536,1786.2,1785.7,3.8028]
[1743938735045,0.05599536,1786.2,1785.8,0.83146891]
[1743938736069,0.05599536,1786.2,1785.8,0.45118891]
[1743938736254,0.8185,1786.1,1785.8,0.45118891]
[1743938736449,0.05599536,1786.0,1785.6,6.16]
[1743938736648,0.05599536,1786.0,1785.7,0.45173327]
[1743938736855,0.05599536,1786.0,1785.7,1.1129066]
[1743938737250,0.87449536,1786.1,1785.7,1.1129066]
[1743938737462,5.21,1786.2,1785.8,0.8028]
[1743938737662,5.26599536,1786.2,1785.9,0.45064462]
[1743938737877,5.26599536,1786.2,1785.8,0.8028]
[1743938738071,5.26599536,1786.2,1785.9,0.45064462]
[1743938738278,5.26599536,1786.2,1785.8,0.8028]
[1743938738478,5.26599536,1786.2,1785.9,0.45064462]
[1743938738650,5.26599536,1786.2,1785.8,0.8028]
[1743938738855,5.26599536,1786.2,1785.9,0.45064462]
[1743938739051,5.8744449,1786.2,1785.7,0.8028]
[1743938739377,0.87449536,1786.1,1785.8,0.45118891]
[1743938740864,0.87449536,1786.1,1785.6,6.16]
[1743938741064,0.87449536,1786.1,1785.7,0.45173327]
[1743938744286,0.87449536,1786.1,1785.8,0.8028]
[1743938744487,0.05599536,1786.1,1785.9,0.45064462]
[1743938744782,0.05599536,1786.1,1785.8,0.8028]
[1743938744978,0.05599536,1786.1,1786.0,0.45010038]
[1743938745151,0.05599536,1786.1,1785.9,0.45064462]
[1743938745351,0.05599536,1786.1,1786.0,0.45010038]
[1743938745762,0.05599536,1786.1,1785.8,0.8028]
[1743938745962,0.05599536,1786.1,1786.0,0.45010038]
[1743938746164,0.05599536,1786.1,1785.9,0.45064462]
[1743938746353,0.05599536,1786.1,1786.0,0.45010038]
[1743938746762,0.05599536,1786.1,1785.8,0.8028]
[1743938746973,0.05599536,1786.1,1786.0,0.45010038]
[1743938747176,0.05599536,1786.1,1785.9,0.45064462]
[1743938747374,0.05599536,1786.1,1786.0,0.45010038]
[1743938747774,0.05599536,1786.1,1785.6,6.9897]
[1743938747976,0.05599536,1786.1,1786.0,0.45010038]
[1743938748176,0.05599536,1786.1,1785.7,0.69897]
[1743938748377,0.05599536,1786.1,1786.0,0.45010038]
[1743938748992,0.05599536,1786.1,1785.7,0.69897]
[1743938749193,0.05599536,1786.1,1786.0,0.45010038]
[1743938749797,0.05599536,1786.1,1785.6,6.9897]
[1743938749985,0.05599536,1786.1,1786.0,0.45010038]
[1743938750313,0.82269536,1786.1,1786.0,0.45010038]
[1743938750473,0.82269536,1786.1,1785.7,0.69897]
[1743938750674,0.82269536,1786.1,1785.8,0.45118891]
[1743938756001,0.82269536,1786.1,1785.8,0.45482891]
[1743938760111,0.05599536,1786.1,1785.8,0.45482891]
[1743938760479,0.05599536,1786.1,1785.8,1.27802891]
[1743938762513,0.05599536,1786.1,1785.8,0.45482891]
[1743938765820,0.80679536,1786.1,1785.8,0.45482891]
[1743938767005,0.05599536,1786.1,1785.8,0.45482891]
[1743938772703,5.9715,1786.4,1785.9,0.7747]
[1743938772908,0.05599536,1786.3,1786.0,0.45245202]
[1743938774395,0.7615,1786.4,1786.0,0.45245202]
[1743938774791,0.7615,1786.4,1786.0,0.70470212]
[1743938775389,0.05599536,1786.5,1786.0,0.70470212]
[1743938775897,0.05599536,1786.5,1786.1,0.7747]
[1743938776096,0.05599536,1786.5,1786.2,0.45030521]
[1743938784414,0.05599536,1786.7,1786.3,0.8136]
[1743938784803,0.05599536,1786.7,1786.4,0.44886441]
[1743938785530,0.84179536,1786.8,1786.4,0.44886441]
[1743938786296,0.7858,1786.8,1786.4,0.50483868]
[1743938786495,0.05599536,1786.8,1786.5,0.8136]
[1743938786701,0.05599536,1786.8,1786.6,0.44601369]
[1743938792438,5.31499536,1786.9,1786.6,0.44601369]
[1743938792606,5.259,1786.9,1786.6,0.44601369]
[1743938793029,0.05,1786.9,1786.6,0.44601369]
[1743938793230,0.05,1786.9,1786.7,0.7896]
[1743938793633,0.05,1786.9,1786.8,0.44492623]
[1743938794142,0.05,1786.9,1786.7,0.7896]
[1743938794338,0.05,1786.9,1786.8,0.44492623]
[1743938794540,0.05,1786.9,1786.7,0.7896]
[1743938794750,0.05,1786.9,1786.8,0.44263578]
[1743938799461,0.05,1786.9,1786.8,1.23223578]
[1743938815441,0.05,1786.9,1786.8,0.44263578]
[1743938818178,0.8305,1786.8,1786.5,6.16]
[1743938818354,1.44484954,1786.8,1786.6,0.44630717]
[1743938818549,0.8305,1786.8,1786.6,0.44630717]
[1743938818750,0.10599536,1786.9,1786.6,1.24280717]
[1743938818955,0.05,1786.9,1786.6,1.24280717]
[1743938819451,0.05,1786.9,1786.6,0.44630717]
[1743938819754,0.8805,1786.9,1786.6,0.44630717]
[1743938820745,0.05,1786.9,1786.7,0.7965]
[1743938821070,0.05,1786.9,1786.8,0.44521967]
[1743938827106,0.05,1786.9,1786.8,0.5011792]
[1743938827596,0.05,1786.9,1786.8,0.44521967]
[1743938828902,0.05,1786.9,1786.8,0.50117918]
[1743938829322,0.05,1786.9,1786.8,0.44521967]
[1743938832394,0.05,1786.9,1786.6,1.43943072]
[1743938832722,0.05,1786.9,1786.7,0.44576339]
[1743938833017,0.05,1786.9,1786.6,1.43943072]
[1743938833225,0.05,1786.9,1786.8,0.44521967]
[1743938833419,0.05,1786.9,1786.7,0.44576339]
[1743938833717,0.05,1786.9,1786.8,0.44521967]
[1743938834079,0.05,1786.9,1786.6,1.43943072]
[1743938834280,0.05,1786.9,1786.7,0.44576339]
[1743938834625,0.7604,1786.8,1786.5,6.16]
[1743938835688,0.05,1786.9,1786.5,6.16]
[1743938835999,0.05,1786.9,1786.6,0.7788]
[1743938836506,0.05,1786.9,1786.5,7.63268]
[1743938841804,0.05,1786.9,1786.6,0.05596371]
[1743938842005,0.05,1786.9,1786.5,7.63268]
[1743938842628,0.05,1786.9,1786.6,0.70979212]
[1743938843532,0.05,1786.9,1786.6,0.7657558]
[1743938844634,0.05,1786.9,1786.6,0.70979212]
[1743938846038,0.05,1786.9,1786.6,0.76575578]
[1743938846328,0.05,1786.9,1786.6,0.70979212]
[1743938846504,0.05,1786.9,1786.6,0.76575568]
[1743938847037,0.05,1786.9,1786.7,0.44576339]
[1743938847430,0.05,1786.9,1786.6,0.76575568]
[1743938847618,0.05,1786.9,1786.7,0.44576339]
[1743938847826,0.05,1786.9,1786.6,0.76575568]
[1743938848014,0.05,1786.9,1786.7,0.44576339]
[1743938848213,0.05,1786.9,1786.6,0.76575568]
[1743938848417,0.05,1786.9,1786.7,0.44576339]
[1743938848619,0.05,1786.9,1786.6,0.70979212]
[1743938848803,0.05,1786.9,1786.7,0.44576339]
[1743938849005,0.05,1786.9,1786.6,0.70979212]
[1743938849339,0.05,1786.9,1786.7,0.44576339]
[1743938849734,0.05,1786.9,1786.6,0.70979212]
[1743938850036,0.05,1786.9,1786.7,0.44553985]
[1743938850636,0.05,1786.9,1786.8,0.44499613]
[1743938850839,0.05,1786.9,1786.6,0.70979212]
[1743938851026,0.05,1786.9,1786.8,0.44499613]
[1743938851226,0.05,1786.9,1786.6,0.70979212]
[1743938851535,0.05,1786.9,1786.7,0.44553985]
[1743938851841,0.05,1786.9,1786.6,0.70979212]
[1743938852013,0.05,1786.9,1786.8,0.44499613]
[1743938852207,0.05,1786.9,1786.6,0.70979212]
[1743938852403,0.05,1786.9,1786.7,0.44553985]
[1743938852643,0.05,1786.9,1786.6,0.70979212]
[1743938852943,0.05,1786.9,1786.8,0.44499613]
[1743938853138,0.05,1786.9,1786.7,0.44553985]
[1743938853337,0.05,1786.9,1786.8,0.44499613]
[1743938853708,0.05,1786.9,1786.6,0.70979212]
[1743938853909,0.05,1786.9,1786.8,0.44499613]
[1743938854109,0.05,1786.9,1786.7,0.44553985]
[1743938854309,0.05,1786.9,1786.8,0.44499613]
[1743938854709,0.05,1786.9,1786.6,0.70979212]
[1743938854944,0.05,1786.9,1786.8,0.44499613]
[1743938855136,0.05,1786.9,1786.7,0.44553985]
[1743938855304,0.05,1786.9,1786.8,0.44499613]
[1743938855709,0.05,1786.9,1786.6,0.70979212]
[1743938855931,0.05,1786.9,1786.8,0.44499613]
[1743938859941,0.05,1786.9,1786.7,0.05596115]
[1743938860145,0.05,1786.9,1786.8,0.44499613]
[1743938861232,0.05,1786.9,1786.6,0.70979212]
[1743938861541,0.05,1786.9,1786.7,0.44553985]
[1743938861919,0.05,1786.9,1786.6,0.70979212]
[1743938862120,0.05,1786.9,1786.8,0.44499613]
[1743938862319,0.05,1786.9,1786.7,0.44553985]
[1743938862523,0.05,1786.9,1786.8,0.44499613]
[1743938862910,0.05,1786.9,1786.5,6.9388]
[1743938863111,0.05,1786.9,1786.8,0.44499613]
[1743938863306,0.05,1786.9,1786.5,6.9388]
[1743938863511,0.05,1786.9,1786.8,0.44499613]
[1743938863711,0.05,1786.9,1786.5,6.9388]
[1743938863911,0.05,1786.9,1786.8,0.44499613]
[1743938864111,0.05,1786.9,1786.5,6.9388]
[1743938864312,0.05,1786.9,1786.8,0.44499613]
[1743938864545,0.05,1786.9,1786.5,6.9388]
[1743938864713,0.05,1786.9,1786.8,0.44499613]
[1743938865248,0.05,1786.9,1786.5,6.9388]
[1743938865411,0.05,1786.9,1786.6,0.44608363]
[1743938868245,0.05,1786.9,1786.6,0.50204732]
[1743938868745,0.05,1786.9,1786.6,0.44608363]
[1743938868951,0.05,1786.9,1786.6,1.24053566]
[1743938875765,0.05,1786.9,1786.7,6.9312]
[1743938875978,0.05,1786.9,1786.8,0.05595582]
[1743938876183,0.05,1786.9,1786.8,0.50095195]
[1743938876342,0.05,1786.9,1786.8,0.44499613]
[1743938876653,0.05,1786.9,1786.8,0.50094978]
[1743938877772,0.05,1786.9,1786.8,1.24416476]
[1743938878138,0.05,1786.9,1786.8,1.18821111]
[1743938880271,0.05,1786.9,1786.8,7.34821111]
[1743938888361,0.05,1786.9,1786.8,8.12491111]
[1743938893474,0.05,1786.9,1786.8,16.32991111]
[1743938894254,0.7577,1787.5,1787.0,0.7767]
[1743938894471,0.7577,1787.8,1787.2,3.7767]
[1743938894847,0.7577,1787.8,1787.3,0.44063436]
[1743938895282,0.7577,1787.8,1787.3,0.42173344]
[1743938895464,0.7577,1787.8,1787.4,6.60032592]
[1743938896483,0.7577,1787.8,1787.4,7.35222592]
[1743938897399,0.7577,1787.8,1787.4,7.77975813]
[1743938898868,0.7577,1787.8,1787.4,7.02785813]
[1743938900672,0.7577,1787.8,1787.4,6.60032592]
[1743938901395,0.7577,1787.8,1787.5,0.05593734]
[1743938901780,0.7577,1787.8,1787.6,0.43888737]
[1743938902965,0.7577,1787.8,1787.4,7.33360089]
[1743938903296,0.7577,1787.8,1787.7,0.43746394]
[1743938903455,0.7577,1787.8,1787.4,7.33360089]
[1743938903659,0.7577,1787.8,1787.5,1.17126458]
[1743938904895,0.7577,1787.8,1787.6,0.05593197]
[1743938905098,0.7577,1787.8,1787.7,0.44127858]
[1743938905968,0.05,1787.9,1787.7,0.44127858]
[1743938908599,0.05,1787.9,1787.6,0.8138]
[1743938908765,0.05,1787.9,1787.8,0.43504376]
[1743938909199,0.05,1787.9,1787.7,6.16]
[1743938909386,0.05,1787.9,1787.7,6.83031203]
[1743938910068,0.05,1787.9,1787.8,0.43551296]
[1743938910801,0.8264,1787.9,1787.8,0.43551296]
[1743938912713,0.8264,1787.9,1787.6,6.16]
[1743938912914,0.8264,1787.9,1787.7,0.43687709]
[1743938938063,0.05599536,1787.8,1787.7,0.43687709]
[1743938939451,0.05599536,1787.8,1787.4,6.16]
[1743938939618,0.05599536,1787.8,1787.7,0.43664244]
[1743938939823,0.05599536,1787.8,1787.4,6.16]
[1743938940022,0.05599536,1787.8,1787.7,0.43664244]
[1743938940225,0.05599536,1787.8,1787.4,6.16]
[1743938940755,0.05599536,1787.8,1787.5,0.43772845]
[1743938943862,0.761,1787.7,1787.5,0.43772845]
[1743938955614,0.85129536,1787.6,1787.5,0.43772845]
[1743938956643,0.85129536,1787.6,1787.1,3.8201]
[1743938957071,0.85129536,1787.6,1787.2,0.33852459]
[1743938957271,0.85129536,1787.6,1787.2,0.05594701]
[1743938957471,0.85129536,1787.6,1787.3,0.33798137]
[1743938958716,0.85129536,1787.6,1787.1,3.8201]
[1743938958870,0.85129536,1787.6,1787.2,0.31019126]
[1743938959072,1.4566249,1787.6,1787.1,3.8201]
[1743938959376,1.4566249,1787.6,1787.3,0.30964804]
[1743938959579,1.4566249,1787.6,1787.2,0.31019126]
[1743938959770,1.4566249,1787.6,1787.4,0.30910488]
[1743938960109,1.4566249,1787.6,1787.5,0.28272845]
[1743938960308,0.85129536,1787.6,1787.1,3.8201]
[1743938960633,0.85129536,1787.6,1787.2,0.28435793]
[1743938961018,0.85129536,1787.6,1787.1,3.8201]
[1743938961314,0.85129536,1787.6,1787.2,0.26019126]
[1743938961506,0.85129536,1787.6,1787.2,0.05594698]
[1743938961712,0.85129536,1787.6,1787.3,0.25964804]
[1743938964833,0.85129536,1787.6,1787.2,0.05594696]
[1743938965014,0.85129536,1787.6,1787.4,0.25910488]
[1743938965211,1.4566249,1787.6,1787.3,0.25976539]
[1743938965528,1.4566249,1787.6,1787.4,0.25922223]
[1743938965714,1.4566249,1787.6,1787.1,3.8201]
[1743938965917,0.85129536,1787.6,1787.2,0.26030862]
[1743938966224,0.85129536,1787.6,1787.1,3.8201]
[1743938966432,0.85129536,1787.6,1787.3,0.25976539]
[1743938966631,0.85129536,1787.6,1787.2,0.26030862]
[1743938966787,0.85129536,1787.6,1787.4,0.25922223]
[1743938966988,0.85129536,1787.6,1787.3,0.25976539]
[1743938967187,0.85129536,1787.6,1787.5,0.25867912]
[1743938967427,0.85129536,1787.6,1787.4,0.25922223]
[1743938967631,0.85129536,1787.6,1787.5,0.25867912]
[1743938967834,1.4566249,1787.6,1787.5,0.25867912]
[1743938968359,1.4566249,1787.6,1787.1,3.8201]
[1743938968652,0.85129536,1787.6,1787.2,0.26030862]
[1743938969016,0.85129536,1787.6,1787.1,3.8201]
[1743938969229,0.85129536,1787.6,1787.3,0.25976539]
[1743938969444,0.85129536,1787.6,1787.2,0.26030862]
[1743938969643,0.85129536,1787.6,1787.4,0.25922223]
[1743938969854,1.4566249,1787.6,1787.3,0.25976539]
[1743938970011,0.85129536,1787.6,1787.5,0.25856178]
[1743938970216,0.85129536,1787.6,1787.4,0.25910488]
[1743938970529,0.85129536,1787.6,1787.5,0.25856178]
[1743938970862,0.85129536,1787.6,1787.1,3.8201]
[1743938971025,1.4566249,1787.6,1787.5,0.25856178]
[1743938971224,1.4566249,1787.6,1787.1,3.8201]
[1743938971451,1.4566249,1787.6,1787.5,0.25856178]
[1743938971651,1.4566249,1787.6,1787.1,3.8201]
[1743938971820,1.4566249,1787.6,1787.5,0.25856178]
[1743938972019,1.4566249,1787.6,1787.1,3.8201]
[1743938972661,1.4566249,1787.6,1787.2,0.26019126]
[1743938973016,1.4566249,1787.6,1787.1,3.8201]
[1743938973224,1.4566249,1787.6,1787.3,0.25964804]
[1743938973426,1.4566249,1787.6,1787.2,0.26019126]
[1743938973674,1.4566249,1787.6,1787.4,0.25910488]
[1743938973834,1.4566249,1787.6,1787.3,0.25964804]
[1743938974034,1.4566249,1787.6,1787.5,0.25856178]
[1743938974237,1.4566249,1787.6,1787.4,0.25863552]
[1743938974436,1.4566249,1787.6,1787.5,0.25809245]
[1743938974875,1.4566249,1787.6,1787.1,3.87604876]
[1743938975075,0.85129536,1787.6,1787.5,0.25856178]
[1743938975257,0.85129536,1787.6,1787.1,3.87604876]
[1743938975461,0.85129536,1787.6,1787.5,0.25856178]
[1743938975656,0.85129536,1787.6,1787.1,3.87604876]
[1743938975863,0.85129536,1787.6,1787.5,0.25856178]
[1743938976068,1.4566249,1787.6,1787.1,3.87604876]
[1743938976386,0.85129536,1787.6,1787.1,3.87604876]
[1743938976581,0.85129536,1787.6,1787.2,0.26019126]
[1743938977044,0.85129536,1787.6,1787.1,3.87604876]
[1743938977243,0.85129536,1787.6,1787.3,0.25964804]
[1743938977591,0.85129536,1787.6,1787.1,3.87604876]
[1743938977592,0.85129536,1787.6,1787.4,0.25910488]
[1743938977756,1.4566249,1787.6,1787.4,0.25910488]
[1743938978083,1.4566249,1787.6,1787.1,3.8201]
[1743938978281,0.85129536,1787.6,1787.5,0.25856178]
[1743938978792,0.85129536,1787.6,1787.1,3.8201]
[1743938978967,0.85129536,1787.6,1787.5,0.25832711]
[1743938979164,0.85129536,1787.6,1787.1,3.8201]
[1743938979379,0.85129536,1787.6,1787.2,0.25995655]
[1743938979580,1.4566249,1787.6,1787.1,0.8201]
[1743938979885,1.4566249,1787.6,1787.3,0.25964804]
[1743938980093,0.7817,1787.5,1787.2,0.26019126]
[1743938980249,0.7817,1787.5,1787.4,0.25910488]
[1743938980451,0.7817,1787.5,1787.3,0.25964804]
[1743938980694,0.7817,1787.5,1787.4,0.23743822]
[1743938980906,0.7817,1787.5,1787.0,6.16]
[1743938981068,0.7817,1787.5,1787.1,0.23906787]
[1743938982164,0.05599536,1787.4,1787.1,0.23906787]
[1743938982512,0.7817,1787.3,1787.1,0.23906787]
[1743938983106,0.05599536,1787.2,1787.1,0.23906787]
[1743938986131,0.05599536,1787.2,1786.7,9.9845]
[1743938986291,0.05599536,1787.2,1786.8,0.24069808]
[1743938989391,0.8253,1787.1,1786.8,0.24069808]
[1743938991351,0.8253,1787.1,1786.8,0.29665662]
[1743938991650,0.8253,1787.1,1786.8,0.24069808]
[1743938995061,5.202,1787.3,1786.9,0.82045847]
[1743938995353,6.06889536,1787.5,1787.0,0.24113704]
[1743938995506,6.6757849,1787.5,1787.0,0.24113704]
[1743938998664,1.4737849,1787.5,1787.0,0.24113704]
[1743938998967,6.06889536,1787.5,1787.0,0.24113704]
[1743939001537,0.8109,1787.4,1787.0,0.24113704]
[1743939001864,0.86689536,1787.3,1787.0,0.24113704]
[1743939007312,0.05599536,1787.3,1787.0,1.02433704]
[1743939008186,6.03969536,1787.4,1787.0,1.02433704]
[1743939008393,6.6436649,1787.4,1787.0,1.02433704]
[1743939008891,6.6436649,1787.4,1787.0,0.24113704]
[1743939009691,0.7817,1787.3,1787.0,0.24113704]
[1743939009889,0.7817,1787.1,1787.0,0.24113704]
[1743939011966,5.202,1787.1,1787.0,1.04873704]
[1743939012171,0.05599536,1787.3,1787.0,1.04873704]
[1743939013475,0.5817949,1787.3,1787.0,1.04873704]